bitfinex-derivatives/quotes_ETHF0:USTF0_20250102
["timestamp","ask_amount","ask_price","bid_price","bid_amount"]
[1735825180939,6.10233837,3472.4,3472.3,1.4533]
[1735825182355,4.60886985,3472.4,3472.3,1.4533]
[1735825182947,4.60886985,3472.4,3472.3,3.49708184]
[1735825183554,0.4624,3472.4,3472.3,3.49708184]
[1735825184952,10.25601733,3472.4,3472.3,3.49708184]
[1735825185452,9.79361733,3472.4,3472.3,3.49708184]
[1735825186249,0.43270708,3472.4,3472.3,3.49708184]
[1735825187856,5.64714748,3472.5,3472.4,0.28829]
[1735825188845,5.61533375,3472.7,3472.3,1.165]
[1735825189060,5.61533375,3472.7,3472.6,0.28827]
[1735825191374,11.56247707,3472.7,3472.6,0.28827]
[1735825192173,11.56247707,3472.7,3472.6,1.45327]
[1735825192471,18.30748671,3472.7,3472.6,1.45327]
[1735825192870,21.51528671,3472.7,3472.6,1.45327]
[1735825193063,21.80355671,3472.7,3472.6,1.165]
[1735825193468,21.80355671,3472.7,3472.6,0.4061]
[1735825193671,0.2883,3472.3,3472.1,0.28831]
[1735825193970,3.2078,3472.2,3471.9,1.165]
[1735825194166,0.949,3472.1,3471.9,1.165]
[1735825194372,0.949,3472.1,3472.0,2.33210184]
[1735825194963,0.949,3472.1,3472.0,0.28832]
[1735825195166,11.04477707,3472.1,3472.0,0.28832]
[1735825196477,5.09763375,3472.1,3472.0,0.28832]
[1735825196874,5.09763375,3472.1,3472.0,2.33210184]
[1735825197674,0.43270708,3472.4,3472.3,0.2883]
[1735825198267,0.43270708,3472.4,3472.3,41.0883]
[1735825198984,0.43270708,3472.4,3472.3,0.2883]
[1735825199278,4.14863375,3472.4,3472.3,0.2883]
[1735825199472,4.14863375,3472.4,3472.3,2.33208184]
[1735825201583,9.80081807,3472.4,3472.3,2.33208184]
[1735825202680,4.14863375,3472.4,3472.3,2.33208184]
[1735825202873,4.14863375,3472.4,3472.3,2.80138184]
[1735825203975,4.52211221,3472.4,3472.3,2.80138184]
[1735825205676,4.52211221,3472.5,3472.4,0.28829]
[1735825206494,4.52211221,3472.5,3472.4,41.08829]
[1735825206495,3.76311221,3472.5,3472.4,41.08829]
[1735825206986,0.43270708,3472.5,3472.4,41.08829]
[1735825208581,3.39006721,3472.6,3472.4,41.08829]
[1735825208777,3.39006721,3472.6,3472.5,0.76548]
[1735825210687,3.39006721,3472.7,3472.6,0.28827]
[1735825210883,3.39006721,3472.7,3472.6,7.20315184]
[1735825211283,3.39006721,3472.7,3472.6,12.20315184]
[1735825211485,3.39006721,3472.7,3472.6,48.00315184]
[1735825212490,3.39006721,3472.8,3472.7,0.28827]
[1735825214192,2.25826307,3472.8,3472.7,0.28827]
[1735825214487,3.39006721,3472.9,3472.7,5.0]
[1735825214698,5.49837757,3473.3,3472.7,5.0]
[1735825214883,5.49837757,3473.3,3473.2,5.53980184]
[1735825215084,0.9981,3473.8,3473.6,0.28819]
[1735825215397,0.9981,3473.8,3473.6,6.70377184]
[1735825215986,0.9981,3473.8,3473.6,6.41558184]
[1735825216186,0.9981,3473.8,3473.6,3.20778184]
[1735825216391,4.2059,3473.8,3473.7,0.28818]
[1735825217290,0.28822,3473.4,3473.2,1.164]
[1735825217492,3.6848,3473.3,3472.9,1.164]
[1735825217700,3.6848,3473.3,3473.0,0.28824]
[1735825217993,3.6848,3473.3,3472.9,1.164]
[1735825218193,3.6848,3473.3,3472.7,1.164]
[1735825218396,0.28827,3472.7,3471.9,2.20692]
[1735825218693,3.2078,3472.5,3472.0,3.20778184]
[1735825218894,3.2078,3472.5,3472.2,0.2883]
[1735825219291,3.2078,3472.5,3472.1,0.28832]
[1735825219596,3.2078,3472.5,3472.3,0.28829]
[1735825220098,0.28829,3472.4,3472.0,3.49610184]
[1735825220289,0.28831,3472.3,3472.1,1.164]
[1735825220592,0.28833,3472.0,3471.5,1.45236]
[1735825220792,3.6912,3471.9,3471.6,0.28836]
[1735825221396,3.97954,3471.9,3471.5,1.164]
[1735825221597,3.6912,3471.9,3471.5,1.164]
[1735825221895,3.97954,3471.9,3471.5,1.45236]
[1735825222091,3.6912,3471.9,3471.5,1.45236]
[1735825222292,3.6912,3471.9,3471.5,1.164]
[1735825222490,3.6912,3471.9,3471.6,0.28835]
[1735825222692,3.97954,3471.9,3471.5,1.45236]
[1735825222890,0.28834,3471.8,3471.5,1.164]
[1735825223093,3.97954,3471.9,3471.5,1.164]
[1735825223293,3.6912,3471.9,3471.5,1.164]
[1735825223498,3.6912,3471.9,3471.5,1.45236]
[1735825223701,3.6912,3471.9,3471.4,3.20778184]
[1735825223897,3.6912,3471.9,3471.7,0.28834]
[1735825224101,3.6912,3471.9,3471.4,3.20778184]
[1735825224302,3.97954,3471.9,3471.4,3.49615184]
[1735825224493,3.2078,3471.5,3471.4,3.49615184]
[1735825226202,3.6912,3471.9,3471.4,3.20778184]
[1735825226500,3.6912,3471.9,3471.6,0.28836]
[1735825226703,3.6912,3471.9,3471.4,3.20778184]
[1735825226901,3.6912,3471.9,3471.6,0.28835]
[1735825227102,3.6912,3471.9,3471.5,41.08836]
[1735825227411,3.6912,3471.9,3471.6,0.28836]
[1735825228204,3.6912,3471.9,3471.5,40.8]
[1735825228400,3.6912,3471.9,3471.6,0.28836]
[1735825229003,3.6912,3471.9,3471.5,40.8]
[1735825229199,3.6912,3471.9,3471.4,3.20778184]
[1735825229200,3.97954,3471.9,3471.4,1.164]
[1735825229405,3.97954,3471.9,3471.5,0.28837]
[1735825229704,3.6912,3471.9,3471.6,0.28836]
[1735825231106,3.6912,3471.9,3471.7,0.28834]
[1735825231605,3.6912,3471.9,3471.6,0.28835]
[1735825231800,3.6912,3471.9,3471.7,0.28835]
[1735825232120,3.6912,3471.9,3471.6,0.28835]
[1735825234301,3.6912,3471.9,3471.4,44.00778184]
[1735825234610,3.97953,3471.9,3471.6,0.28835]
[1735825234809,3.6912,3471.9,3471.6,0.28835]
[1735825235505,3.97954,3471.9,3471.4,1.164]
[1735825235907,3.97954,3471.9,3471.6,0.28835]
[1735825236104,3.6912,3471.9,3471.7,0.28835]
[1735825236409,3.6912,3471.9,3471.4,1.164]
[1735825236410,3.6912,3471.9,3471.8,0.28834]
[1735825237507,4.4995185,3472.2,3471.7,2.04378184]
[1735825237716,4.4995185,3472.2,3472.1,2.33210184]
[1735825237717,4.9804185,3472.2,3472.1,2.33210184]
[1735825237905,0.4809,3472.2,3472.1,3.49610184]
[1735825238211,0.4809,3472.2,3472.1,1.45232]
[1735825246722,3.2078,3472.3,3472.2,0.2883]
[1735825247117,3.2078,3472.3,3472.2,0.7953]
[1735825248416,3.2078,3472.3,3472.2,0.507]
[1735825248618,3.2078,3472.3,3472.2,0.7953]
[1735825250829,0.4922,3472.5,3472.4,0.28829]
[1735825253019,4.4995185,3472.6,3472.5,0.28828]
[1735825253523,8.83549273,3472.7,3472.4,2.04378184]
[1735825253723,8.83549273,3472.7,3472.6,0.28827]
[1735825254933,3.2078,3472.7,3472.6,0.28827]
[1735825255115,3.2078,3472.8,3472.4,2.76450184]
[1735825255318,3.2078,3472.8,3472.7,0.28826]
[1735825258126,3.2078,3472.8,3472.7,2.33204184]
[1735825258625,4.5014787,3472.9,3472.7,2.04378184]
[1735825258822,4.5014787,3472.9,3472.8,1.30515]
[1735825259018,4.5014787,3472.9,3472.8,1.77475]
[1735825259231,3.7297787,3472.9,3472.8,4.98255]
[1735825259427,5.62769273,3473.1,3472.8,4.98255]
[1735825259428,2.1863787,3473.1,3473.0,0.28824]
[1735825259624,2.1863787,3473.1,3473.0,3.49602184]
[1735825260824,3.2078,3473.4,3473.3,0.28821]
[1735825262228,0.9869,3473.8,3473.3,2.04378184]
[1735825262441,0.9869,3473.8,3473.7,0.28818]
[1735825262626,0.9869,3473.8,3473.7,1.45218]
[1735825263027,5.62769273,3474.0,3473.9,0.28816]
[1735825263222,5.62769273,3474.0,3473.9,2.33194184]
[1735825263435,5.62769273,3474.3,3474.2,0.28814]
[1735825263729,5.62769273,3474.3,3474.2,2.33192184]
[1735825264127,5.62769273,3474.3,3474.2,0.28814]
[1735825264522,4.2152,3474.4,3473.9,2.04378184]
[1735825264729,4.2152,3474.4,3474.3,0.28813]
[1735825266230,4.50332,3474.4,3473.8,0.28817]
[1735825266436,4.50332,3474.4,3474.0,0.28815]
[1735825266635,0.28813,3474.3,3474.1,1.164]
[1735825266932,0.28813,3474.3,3474.0,1.164]
[1735825267132,4.2152,3474.4,3474.1,0.28815]
[1735825267133,4.50333,3474.4,3474.1,0.28815]
[1735825267336,0.28813,3474.3,3474.0,0.28815]
[1735825267531,4.2152,3474.4,3473.9,1.164]
[1735825267726,3.2078,3474.0,3473.9,1.164]
[1735825268038,3.2078,3474.0,3473.9,0.28816]
[1735825269322,3.2078,3474.0,3473.9,1.45116]
[1735825271839,4.2152,3474.4,3474.2,0.28813]
[1735825272141,4.2152,3474.4,3474.3,0.28813]
[1735825272335,4.2152,3474.4,3474.2,0.28813]
[1735825272637,4.2152,3474.4,3474.3,0.28813]
[1735825275341,3.7105,3474.4,3474.3,0.28813]
[1735825276641,0.5027,3474.4,3474.3,0.28813]
[1735825277143,3.7105,3474.4,3474.2,0.28813]
[1735825277341,3.7105,3474.4,3474.3,0.28813]
[1735825279144,0.5027,3474.4,3474.3,0.28813]
[1735825280141,0.4848,3474.6,3474.0,40.8]
[1735825280337,0.4737,3474.5,3474.4,0.28812]
[1735825284349,3.689,3474.8,3474.4,0.28812]
[1735825284546,3.689,3474.8,3474.7,0.2881]
[1735825284746,3.689,3474.8,3474.7,1.4511]
[1735825286852,0.5103,3474.9,3474.8,0.28809]
[1735825287154,0.5103,3474.9,3474.8,2.33187184]
[1735825290251,3.7052,3475.2,3474.8,2.33187184]
[1735825290459,3.7052,3475.2,3475.1,0.28806]
[1735825291254,3.7052,3475.2,3475.1,2.33184184]
[1735825291458,3.2078,3475.2,3475.1,2.33184184]
[1735825292256,0.482,3475.3,3475.2,0.28805]
[1735825293255,3.2078,3475.7,3475.2,0.72013]
[1735825293552,0.4803,3475.5,3475.4,0.28804]
[1735825293757,0.4803,3475.5,3475.4,1.45004]
[1735825294756,0.4803,3475.5,3475.4,1.162]
[1735825294958,0.4803,3475.5,3475.4,1.45004]
[1735825295261,0.4803,3475.5,3475.4,1.162]
[1735825295554,0.76833,3475.5,3475.4,1.162]
[1735825295761,0.4803,3475.5,3475.2,1.162]
[1735825295961,3.49585,3475.3,3475.2,1.162]
[1735825297169,3.49585,3475.3,3475.2,1.45005]
[1735825297352,6.8648829,3475.3,3475.2,1.45005]
[1735825299659,6.8648829,3475.3,3475.2,0.28805]
[1735825299859,0.28807,3475.2,3475.1,0.28806]
[1735825301277,8.83549273,3475.3,3475.2,0.28805]
[1735825301960,3.2078,3475.3,3475.2,0.28805]
[1735825303262,6.58685905,3475.3,3475.2,0.28805]
[1735825304160,3.37905905,3475.3,3475.2,0.28805]
[1735825304359,0.5016,3475.6,3475.1,2.04378184]
[1735825304360,3.37905905,3475.4,3475.1,2.04378184]
[1735825304564,3.37905905,3475.4,3475.3,0.28805]
[1735825307165,3.37905905,3475.5,3475.4,0.28804]
[1735825307361,3.37905905,3475.5,3475.0,0.72017]
[1735825307677,0.4953,3475.4,3475.1,1.162]
[1735825307864,0.28805,3475.3,3475.2,0.6385]
[1735825308769,0.28805,3475.3,3474.9,1.162]
[1735825308770,3.2078,3475.3,3474.9,1.162]
[1735825308975,0.28807,3475.0,3474.9,1.162]
[1735825310762,0.2881,3474.7,3474.6,0.2881]
[1735825310961,3.2078,3474.8,3473.7,3.2078]
[1735825311159,3.2078,3474.3,3474.2,0.28814]
[1735825313874,3.2078,3474.3,3474.2,0.80124]
[1735825315867,3.2078,3474.3,3474.2,0.5131]
[1735825316067,3.2078,3474.3,3474.2,0.28814]
[1735825317168,5.63584665,3474.4,3474.3,0.28813]
[1735825317775,5.63584665,3474.4,3474.3,41.08813]
[1735825318572,4.5076675,3474.4,3474.3,0.28813]
[1735825319162,4.5076675,3474.4,3474.1,1.162]
[1735825319375,3.2078,3474.2,3473.9,1.162]
[1735825319575,0.28815,3474.1,3473.9,1.45016]
[1735825319771,3.7102,3474.2,3473.9,1.162]
[1735825319973,0.28815,3474.1,3473.9,1.162]
[1735825320274,0.28815,3474.1,3473.8,3.29675184]
[1735825320574,0.28815,3474.1,3473.9,1.162]
[1735825320966,0.28818,3473.7,3473.6,1.162]
[1735825321170,3.49598,3473.7,3473.6,1.162]
[1735825321467,3.2078,3473.7,3473.4,1.162]
[1735825321772,0.2882,3473.5,3473.4,1.162]
[1735825322368,1.2721,3473.5,3473.2,0.9727]
[1735825322578,1.2721,3473.5,3473.1,7.49223]
[1735825322579,3.49601,3473.3,3472.9,1.45024]
[1735825322770,3.49601,3473.3,3473.0,0.28823]
[1735825323567,3.2078,3473.3,3473.1,2.04378184]
[1735825323763,3.2078,3473.3,3473.2,0.28822]
[1735825324770,4.5076675,3473.4,3473.2,0.28822]
[1735825325173,3.37327443,3473.4,3473.3,0.28821]
[1735825326675,3.37327443,3473.5,3473.3,0.28821]
[1735825326870,3.37327443,3473.5,3473.4,2.33198184]
[1735825327778,3.37327443,3473.5,3473.4,43.13198184]
[1735825328179,0.28819,3473.6,3473.3,0.78021]
[1735825328575,0.78139,3473.6,3473.3,0.78021]
[1735825328979,1.27039,3473.6,3473.3,0.492]
[1735825329374,1.27039,3473.6,3473.3,0.78021]
[1735825330679,0.9822,3473.6,3473.3,0.492]
[1735825330982,0.9822,3473.6,3473.3,0.78021]
[1735825330983,1.27039,3473.6,3473.3,0.78021]
[1735825331178,1.27039,3473.6,3473.4,0.2882]
[1735825331385,0.28821,3473.4,3473.1,1.162]
[1735825331677,3.2078,3473.3,3473.2,0.28822]
[1735825332980,0.9822,3473.6,3473.4,0.2882]
[1735825333381,0.9822,3473.6,3473.1,3.20578184]
[1735825333382,4.35547443,3473.6,3473.1,3.20578184]
[1735825333584,4.35547443,3473.6,3473.3,0.28821]
[1735825333585,4.64366443,3473.6,3473.3,0.28821]
[1735825334087,0.28824,3473.0,3472.7,0.28826]
[1735825334385,0.28824,3473.0,3472.2,0.72075]
[1735825334386,3.2078,3472.8,3472.6,0.28826]
[1735825335080,3.2078,3472.8,3472.4,0.9948]
[1735825335081,0.28826,3472.7,3472.4,2.1568]
[1735825335274,5.45059617,3472.8,3472.1,3.20578184]
[1735825335477,3.2078,3472.4,3472.1,3.20578184]
[1735825335684,3.2078,3472.4,3472.2,0.2883]
[1735825335884,3.49609,3472.4,3472.1,3.49409184]
[1735825336678,3.49609,3472.4,3472.2,1.162]
[1735825337184,3.49609,3472.4,3472.1,0.28831]
[1735825337386,3.49609,3472.4,3472.1,1.45031]
[1735825338079,3.2078,3472.4,3472.1,1.45031]
[1735825338284,0.2883,3472.3,3472.1,1.45031]
[1735825338585,3.2078,3472.4,3472.2,0.2883]
[1735825338776,3.49609,3472.4,3472.2,0.2883]
[1735825339183,3.49609,3472.4,3472.1,1.162]
[1735825339381,3.49609,3472.4,3472.1,1.45031]
[1735825340688,0.4783,3472.3,3472.1,1.45031]
[1735825340987,0.4783,3472.3,3472.1,3.49409184]
[1735825342487,0.4783,3472.3,3472.2,0.2883]
[1735825343185,3.2078,3472.4,3472.3,0.2883]
[1735825343781,3.2078,3472.4,3472.3,41.0883]
[1735825344285,3.2078,3472.4,3472.3,42.2503]
[1735825344482,3.2078,3473.1,3472.3,41.962]
[1735825344785,3.2078,3473.1,3472.9,0.28825]
[1735825346187,3.2078,3473.1,3473.0,0.28824]
[1735825347178,3.2078,3473.1,3473.0,1.45024]
[1735825348288,0.28821,3473.4,3473.1,0.28822]
[1735825348585,3.7184,3473.5,3473.0,1.162]
[1735825348780,3.7184,3473.5,3473.2,0.28822]
[1735825348980,0.2882,3473.4,3473.2,0.28822]
[1735825349693,4.0066,3473.5,3473.2,0.28822]
[1735825350188,4.0066,3473.5,3473.3,0.28821]
[1735825350578,3.2078,3473.4,3473.3,0.28821]
[1735825350990,3.49601,3473.4,3473.2,0.28821]
[1735825351177,3.49601,3473.4,3473.2,0.28822]
[1735825351977,0.28823,3473.2,3473.0,1.162]
[1735825352182,0.28823,3473.1,3473.0,1.162]
[1735825352381,0.28824,3473.0,3472.8,0.28825]
[1735825352586,3.2078,3472.9,3472.5,0.28827]
[1735825352792,0.28827,3472.6,3472.4,0.28828]
[1735825353099,0.28828,3472.6,3472.2,1.162]
[1735825353391,0.28828,3472.6,3472.4,0.28828]
[1735825353786,3.6966,3472.9,3472.2,1.162]
[1735825354088,0.28827,3472.7,3472.5,0.28827]
[1735825354289,2.53106617,3472.6,3472.4,0.28828]
[1735825355992,2.24279617,3472.6,3472.2,1.162]
[1735825356291,0.76848,3472.5,3472.3,0.28829]
[1735825356591,0.76848,3472.5,3472.2,1.162]
[1735825356592,0.4802,3472.5,3472.2,1.162]
[1735825356788,0.4802,3472.5,3472.4,0.28829]
[1735825356988,0.76848,3472.5,3472.4,0.28829]
[1735825357188,0.76848,3472.5,3472.3,0.28829]
[1735825357686,0.4802,3472.5,3472.4,0.28829]
[1735825358084,2.72299617,3472.5,3472.4,0.28829]
[1735825360292,3.01127617,3472.5,3472.3,0.28829]
[1735825360597,2.72299617,3472.5,3472.4,0.28829]
[1735825360793,2.72299617,3472.5,3472.2,1.162]
[1735825360794,3.01128617,3472.5,3472.3,0.28829]
[1735825360988,2.72299617,3472.5,3472.2,1.4503]
[1735825361194,0.28829,3472.4,3472.2,1.162]
[1735825361387,0.28829,3472.4,3472.2,1.4503]
[1735825361583,3.01127617,3472.5,3472.2,1.4503]
[1735825361891,3.01127617,3472.5,3472.2,0.2883]
[1735825362085,0.4715,3472.4,3472.2,0.2883]
[1735825362285,2.24279617,3472.3,3472.2,0.2883]
[1735825362684,2.24279617,3472.3,3472.0,2.1141]
[1735825362887,2.24279617,3472.3,3472.2,0.2883]
[1735825363299,3.84477443,3472.4,3472.0,2.1141]
[1735825363490,3.84477443,3472.4,3472.3,0.2883]
[1735825364491,0.4715,3472.4,3472.3,0.2883]
[1735825364894,0.4715,3472.4,3472.0,2.1141]
[1735825364895,4.5076675,3472.5,3472.4,0.28829]
[1735825365490,4.14440131,3472.5,3472.4,41.08829]
[1735825365694,3.32330131,3472.5,3472.4,41.08829]
[1735825366496,3.32330131,3472.5,3472.4,41.32037685]
[1735825367596,2.25223606,3472.7,3472.4,41.75279685]
[1735825367800,2.25223606,3472.7,3472.6,0.28827]
[1735825369093,2.25223606,3472.8,3472.7,0.28826]
[1735825369398,2.25223606,3472.8,3472.7,1.45026]
[1735825370088,2.25223606,3473.0,3472.7,1.162]
[1735825370290,2.25223606,3473.0,3472.9,2.33203184]
[1735825372596,2.25223606,3473.0,3472.9,7.33203184]
[1735825372898,2.05084707,3473.2,3473.1,0.28823]
[1735825373396,3.378975,3473.6,3473.5,0.2882]
[1735825373600,3.378975,3473.6,3473.5,1.4502]
[1735825373898,3.378975,3473.6,3473.5,3.49398184]
[1735825374296,6.586775,3473.6,3473.5,0.2882]
[1735825374499,3.378975,3473.6,3473.5,0.2882]
[1735825374701,4.04046,3474.0,3473.6,0.28818]
[1735825375296,0.28816,3473.9,3473.6,0.28818]
[1735825375498,4.04046,3474.0,3473.6,0.28818]
[1735825375701,9.67630665,3474.0,3473.6,0.28818]
[1735825375999,9.38814665,3474.0,3473.7,0.28817]
[1735825376795,3.7523,3474.0,3473.7,0.28817]
[1735825378905,3.7523,3474.0,3473.4,2.04378184]
[1735825379099,3.7523,3474.0,3473.8,0.28817]
[1735825380327,3.7523,3474.0,3473.4,2.04378184]
[1735825380504,3.2078,3473.6,3473.5,0.2882]
[1735825380697,3.2078,3473.6,3473.5,1.4492]
[1735825381504,3.2078,3473.6,3473.5,0.2882]
[1735825382403,3.7014,3473.6,3473.5,0.2882]
[1735825382605,0.4936,3473.6,3473.5,0.2882]
[1735825383802,0.4936,3473.6,3473.5,0.827]
[1735825384200,3.7523,3474.0,3473.9,0.28816]
[1735825384608,3.2078,3474.0,3473.9,0.28816]
[1735825385406,0.5469,3474.3,3473.9,0.28816]
[1735825385599,0.5469,3474.3,3474.2,2.33192184]
[1735825385808,0.5469,3474.3,3474.2,3.49292184]
[1735825387808,0.5469,3474.3,3474.2,1.44914]
[1735825388411,0.5469,3474.3,3474.2,1.161]
[1735825388613,0.5469,3474.3,3474.0,0.28815]
[1735825388806,0.28817,3473.9,3473.7,1.44918]
[1735825389007,4.04198,3473.8,3473.6,0.28818]
[1735825389208,0.5452,3473.7,3473.6,0.28818]
[1735825392212,0.83338,3473.7,3473.6,0.28818]
[1735825395821,0.5452,3473.7,3473.6,0.28818]
[1735825396217,5.04075643,3473.7,3473.6,0.28818]
[1735825397314,0.5452,3473.7,3473.6,41.08818]
[1735825397714,0.5452,3473.7,3473.6,40.8]
[1735825397915,0.5452,3473.7,3473.1,1.88157]
[1735825398121,3.2078,3473.3,3473.2,0.28822]
[1735825399321,3.49601,3473.3,3473.2,0.28822]
[1735825399521,3.2078,3473.3,3473.2,0.28822]
[1735825399920,3.7436,3473.3,3473.2,0.28822]
[1735825401120,3.7436,3473.3,3473.1,1.161]
[1735825401329,3.7436,3473.3,3472.9,2.04378184]
[1735825401526,4.03182,3473.3,3473.1,0.28823]
[1735825401929,3.7436,3473.3,3473.1,0.28823]
[1735825402127,0.28823,3473.1,3472.9,0.28825]
[1735825402330,0.5445,3473.0,3472.7,8.364]
[1735825402530,4.03182,3473.3,3473.0,0.28823]
[1735825402732,4.03182,3473.3,3473.1,0.28823]
[1735825403032,3.7436,3473.3,3473.1,0.28823]
[1735825403428,4.03181,3473.3,3473.1,0.28823]
[1735825403727,3.7436,3473.3,3473.1,0.28823]
[1735825403935,3.7436,3473.3,3473.2,0.28822]
[1735825404328,3.7436,3473.3,3473.1,0.28822]
[1735825405428,3.7436,3473.3,3472.9,2.04378184]
[1735825405429,4.03182,3473.3,3472.9,2.04378184]
[1735825405727,4.03182,3473.3,3473.1,0.28823]
[1735825407346,3.7436,3473.3,3473.1,0.28823]
[1735825408733,3.7436,3473.3,3472.9,2.04378184]
[1735825408933,3.7436,3473.3,3473.2,0.28822]
[1735825410339,4.03182,3473.3,3473.1,0.28823]
[1735825410832,8.23915643,3473.3,3473.1,0.28823]
[1735825411339,8.52737643,3473.3,3473.1,0.28823]
[1735825411739,4.49555643,3473.2,3473.1,0.28823]
[1735825412639,4.49555643,3473.2,3473.1,1.161]
[1735825412933,4.78377643,3473.2,3473.1,1.161]
[1735825413135,4.49555643,3473.2,3472.3,4.51967841]
[1735825413333,4.49555643,3473.2,3472.3,5.68067841]
[1735825413334,2.76436184,3473.1,3472.3,5.68067841]
[1735825413542,0.28829,3472.4,3472.3,4.51967841]
[1735825414343,0.28829,3472.4,3472.3,4.80796841]
[1735825414542,4.49555643,3472.4,3472.2,0.2883]
[1735825414845,4.78384643,3472.4,3472.3,0.2883]
[1735825415645,7.99164643,3472.4,3472.3,0.2883]
[1735825416042,0.2883,3472.3,3472.1,1.44931]
[1735825416343,0.2883,3472.2,3472.1,1.161]
[1735825416542,0.5407,3472.2,3472.1,1.161]
[1735825416743,0.5407,3472.2,3472.1,1.44931]
[1735825417253,5.03625643,3472.2,3472.1,1.44931]
[1735825418346,0.5407,3472.2,3472.1,1.44931]
[1735825421843,3.2078,3472.4,3472.3,0.2883]
[1735825422240,3.2078,3472.4,3472.3,2.33208184]
[1735825423442,3.2078,3472.4,3472.3,0.2883]
[1735825424947,3.49605,3472.9,3472.6,0.28827]
[1735825427055,3.49605,3472.9,3472.7,0.28826]
[1735825427248,3.2078,3472.9,3472.7,0.28826]
[1735825427750,3.2078,3472.9,3472.2,0.72077]
[1735825427943,3.49605,3472.9,3472.6,0.28827]
[1735825428343,3.49605,3472.9,3472.7,0.28826]
[1735825428546,3.2078,3472.9,3472.2,0.72077]
[1735825428752,3.2078,3472.9,3472.7,0.28826]
[1735825429449,3.49605,3472.9,3472.7,0.28826]
[1735825431351,3.49605,3472.9,3472.6,0.28826]
[1735825431542,3.49605,3472.9,3472.7,0.28826]
[1735825432858,3.2078,3472.9,3472.8,0.28825]
[1735825433156,0.28827,3472.6,3472.2,0.2883]
[1735825433453,3.2078,3472.9,3472.8,0.28825]
[1735825433651,3.7509,3472.9,3472.8,0.28825]
[1735825434356,4.03915,3472.9,3472.6,0.28827]
[1735825434948,8.53470643,3472.9,3472.6,0.28827]
[1735825435544,0.28825,3472.8,3472.6,0.28827]
[1735825435750,0.4951,3472.7,3472.6,0.28827]
[1735825437153,3.87007809,3472.7,3472.6,0.28827]
[1735825437655,3.87007809,3472.7,3472.5,0.28827]
[1735825437847,3.87007809,3472.7,3472.6,0.28827]
[1735825438054,0.4951,3472.7,3472.6,0.28827]
[1735825438849,4.99065643,3472.7,3472.6,0.28827]
[1735825440550,4.49555643,3472.7,3472.6,0.28827]
[1735825442159,4.49555643,3472.8,3472.7,0.28826]
[1735825443258,4.49555643,3472.8,3472.0,0.5056]
[1735825443456,4.49555643,3472.8,3472.3,0.28829]
[1735825443659,4.49555643,3472.8,3472.1,1.161]
[1735825443660,0.28828,3472.5,3472.1,1.161]
[1735825443858,1.03,3472.4,3472.1,1.44931]
[1735825444059,1.83519,3472.4,3472.1,1.44931]
[1735825444564,3.37725511,3472.2,3472.1,1.44931]
[1735825445461,6.33074643,3472.4,3472.1,1.44931]
[1735825445764,4.49555643,3472.3,3472.2,0.2883]
[1735825451771,7.46390945,3472.4,3472.3,0.2883]
[1735825452362,0.2883,3472.3,3472.2,0.2883]
[1735825452866,7.17561945,3472.4,3472.2,0.2883]
[1735825453669,0.2883,3472.3,3472.2,0.2883]
[1735825454170,7.17561945,3472.4,3472.2,0.2883]
[1735825454373,7.17561945,3472.4,3472.1,1.161]
[1735825454869,0.2883,3472.3,3472.2,0.2883]
[1735825455370,7.46390945,3472.4,3472.2,0.2883]
[1735825456066,7.46390945,3472.4,3472.1,1.161]
[1735825456272,7.46390945,3472.4,3472.3,0.2883]
[1735825456476,7.46390945,3472.4,3472.2,0.2883]
[1735825456667,0.2883,3472.3,3472.2,0.2883]
[1735825457265,7.17561945,3472.4,3472.1,1.38874487]
[1735825457971,5.91701945,3472.3,3472.2,0.2883]
[1735825458165,5.62871945,3472.3,3472.2,0.2883]
[1735825459363,5.62871945,3472.3,3472.2,1.18538083]
[1735825459568,3.7247,3472.4,3472.3,0.2883]
[1735825459971,0.5169,3472.4,3472.3,0.2883]
[1735825460169,10.25052335,3472.8,3472.6,0.28826]
[1735825460371,0.5101,3472.7,3472.6,0.28826]
[1735825460571,0.79836,3472.7,3472.6,0.28826]
[1735825460871,0.79836,3472.7,3472.6,0.28827]
[1735825461370,0.79836,3472.7,3472.5,0.28828]
[1735825461571,0.79836,3472.7,3472.4,0.89708083]
[1735825461774,0.79836,3472.7,3472.5,0.28827]
[1735825461967,0.28827,3472.6,3472.5,0.28827]
[1735825462170,0.28828,3472.5,3472.4,0.28828]
[1735825462371,0.5101,3472.7,3472.2,0.2883]
[1735825462575,0.2883,3472.3,3472.2,0.2883]
[1735825462967,1.3717,3472.3,3472.1,0.28831]
[1735825463163,0.82071,3472.2,3472.0,0.28831]
[1735825463369,0.28835,3471.6,3471.5,4.51967841]
[1735825463566,0.28835,3471.6,3471.5,1.15347841]
[1735825464072,0.82765,3471.6,3471.5,1.15347841]
[1735825464474,0.82765,3471.6,3471.2,0.28838]
[1735825464475,0.5393,3471.6,3471.2,0.28838]
[1735825464668,3.2078,3471.3,3470.9,0.28841]
[1735825464868,3.2078,3471.3,3471.2,0.28839]
[1735825465968,8.83796297,3471.3,3471.2,0.28839]
[1735825466164,9.12634297,3471.3,3471.1,0.28839]
[1735825466773,0.5315,3471.2,3471.1,0.28839]
[1735825467572,5.03157948,3471.2,3471.1,0.28839]
[1735825469972,0.5315,3471.2,3471.1,0.28839]
[1735825477876,0.2884,3471.1,3470.9,1.44941]
[1735825479478,0.2884,3471.1,3470.9,1.161]
[1735825479679,0.2884,3471.1,3470.9,1.44941]
[1735825481181,0.2884,3471.1,3470.9,1.161]
[1735825481382,0.2884,3471.1,3470.9,1.44941]
[1735825482477,0.81989,3471.2,3470.9,1.161]